[Event "Titled Tuesday Blitz November 08 Late 2022"]
[White "Salman, Pavel"]
[Black "Dudzinski, Pawel"]
[WhiteFideId "24153753"]
[BlackFideId "1117890"]
[WhiteElo "2187"]
[BlackElo "2086"]
[Result "1/2-1/2"]
[Round "11"]
[TimeControl "180+1"]
[Date "2022.11.09"]
[WhiteClock "0:00:04"]
[BlackClock "0:00:14"]

1. d4 {[%clk 0:03:00]}  f5 {[%clk 0:02:55]} 2. c3 {[%clk 0:02:58]}  Nf6 {[%clk 0:02:54]} 3. Nh3 {[%clk 0:02:57]}  e6 {[%clk 0:02:53]} 4. Nf4 {[%clk 0:02:55]}  d5 {[%clk 0:02:51]} 5. h4 {[%clk 0:02:56]}  Bd6 {[%clk 0:02:51]} 6. g3 {[%clk 0:02:54]}  O-O {[%clk 0:02:50]} 7. Bg2 {[%clk 0:02:55]}  c6 {[%clk 0:02:50]} 8. Nd2 {[%clk 0:02:54]}  e5 {[%clk 0:02:49]} 9. dxe5 {[%clk 0:02:53]}  Bxe5 {[%clk 0:02:50]} 10. Nf3 {[%clk 0:02:54]}  Bc7 {[%clk 0:02:49]} 11. Nd4 {[%clk 0:02:48]}  Qe7 {[%clk 0:02:46]} 12. O-O {[%clk 0:02:45]}  Ne4 {[%clk 0:02:44]} 13. Qc2 {[%clk 0:02:39]}  Be5 {[%clk 0:02:34]} 14. a4 {[%clk 0:02:35]}  a5 {[%clk 0:02:33]} 15. b3 {[%clk 0:02:34]}  Na6 {[%clk 0:02:24]} 16. Ba3 {[%clk 0:02:32]}  Bd6 {[%clk 0:02:25]} 17. Bxd6 {[%clk 0:02:30]}  Qxd6 {[%clk 0:02:26]} 18. Rad1 {[%clk 0:02:29]}  Qe5 {[%clk 0:02:23]} 19. Nd3 {[%clk 0:02:23]}  Qf6 {[%clk 0:02:17]} 20. Nf4 {[%clk 0:02:20]}  Nc7 {[%clk 0:02:14]} 21. c4 {[%clk 0:02:18]}  c5 {[%clk 0:01:52]} 22. cxd5 {[%clk 0:02:11]}  cxd4 {[%clk 0:01:41]} 23. Qxc7 {[%clk 0:02:10]}  Nc3 {[%clk 0:01:40]} 24. Rd2 {[%clk 0:01:46]}  Ra6 {[%clk 0:01:40]} 25. Rc1 {[%clk 0:01:28]}  Rb6 {[%clk 0:01:24]} 26. Bf3 {[%clk 0:01:05]}  g6 {[%clk 0:01:09]} 27. Kg2 {[%clk 0:00:53]}  Rd8 {[%clk 0:00:58]} 28. Ne6 {[%clk 0:00:52]}  Rxe6 {[%clk 0:00:47]} 29. dxe6 {[%clk 0:00:51]}  Bxe6 {[%clk 0:00:48]} 30. Rxc3 {[%clk 0:00:49]}  Rd7 {[%clk 0:00:44]} 31. Qc8+ {[%clk 0:00:17]}  Rd8 {[%clk 0:00:44]} 32. Qc7 {[%clk 0:00:17]}  Rd7 {[%clk 0:00:45]} 33. Qxd7 {[%clk 0:00:06]}  Bxd7 {[%clk 0:00:44]} 34. Rcd3 {[%clk 0:00:07]}  Be6 {[%clk 0:00:37]} 35. Rxd4 {[%clk 0:00:07]}  Bxb3 {[%clk 0:00:37]} 36. Bxb7 {[%clk 0:00:08]}  Kg7 {[%clk 0:00:34]} 37. Bd5 {[%clk 0:00:07]}  Bxd5+ {[%clk 0:00:32]} 38. Rxd5 {[%clk 0:00:08]}  Qc6 {[%clk 0:00:32]} 39. Rd4 {[%clk 0:00:08]}  Kh6 {[%clk 0:00:28]} 40. f3 {[%clk 0:00:08]}  Qc2 {[%clk 0:00:27]} 41. Kf2 {[%clk 0:00:08]}  Qa2 {[%clk 0:00:20]} 42. Rxa5 {[%clk 0:00:06]}  Qa1 {[%clk 0:00:18]} 43. Rad5 {[%clk 0:00:06]}  Qh1 {[%clk 0:00:19]} 44. a5 {[%clk 0:00:06]}  Qh2+ {[%clk 0:00:19]} 45. Ke3 {[%clk 0:00:06]}  Qxg3 {[%clk 0:00:20]} 46. a6 {[%clk 0:00:07]}  Qg1+ {[%clk 0:00:19]} 47. Kd2 {[%clk 0:00:07]}  Qa1 {[%clk 0:00:19]} 48. Rd6 {[%clk 0:00:08]}  Qa2+ {[%clk 0:00:19]} 49. Ke3 {[%clk 0:00:08]}  Qa3+ {[%clk 0:00:19]} 50. Kf2 {[%clk 0:00:08]}  Qc5 {[%clk 0:00:16]} 51. Rd5 {[%clk 0:00:06]}  Qb6 {[%clk 0:00:16]} 52. Rd6 {[%clk 0:00:06]}  Qc5 {[%clk 0:00:16]} 53. Kg2 {[%clk 0:00:06]}  f4 {[%clk 0:00:17]} 54. R6d5 {[%clk 0:00:05]}  Qc2 {[%clk 0:00:17]} 55. Re4 {[%clk 0:00:04]}  Qa2 {[%clk 0:00:17]} 56. Rd6 {[%clk 0:00:04]}  Qa3 {[%clk 0:00:17]} 57. Rde6 {[%clk 0:00:04]}  Qa1 {[%clk 0:00:17]} 58. Rxf4 {[%clk 0:00:03]}  Qa2 {[%clk 0:00:17]} 59. Rfe4 {[%clk 0:00:03]}  Qa1 {[%clk 0:00:18]} 60. Kf2 {[%clk 0:00:03]}  Qa2 {[%clk 0:00:18]} 61. Rd6 {[%clk 0:00:03]}  Qa3 {[%clk 0:00:17]} 62. Rd7 {[%clk 0:00:03]}  Qc5+ {[%clk 0:00:17]} 63. Kg2 {[%clk 0:00:02]}  Qb5 {[%clk 0:00:17]} 64. Ree7 {[%clk 0:00:02]}  g5 {[%clk 0:00:16]} 65. Rxh7+ {[%clk 0:00:02]}  Kg6 {[%clk 0:00:16]} 66. Rhg7+ {[%clk 0:00:03]}  Kf6 {[%clk 0:00:16]} 67. hxg5+ {[%clk 0:00:03]}  Ke6 {[%clk 0:00:17]} 68. Rge7+ {[%clk 0:00:04]}  Kf5 {[%clk 0:00:16]} 69. a7 {[%clk 0:00:04]}  Qa6 {[%clk 0:00:16]} 70. Rf7+ {[%clk 0:00:04]}  Kxg5 {[%clk 0:00:15]} 71. Rf8 {[%clk 0:00:04]}  Qxe2+ {[%clk 0:00:14]} 72. Kg3 {[%clk 0:00:05]}  Qe1+ {[%clk 0:00:14]} 73. Kg2 {[%clk 0:00:05]}  Qe2+ {[%clk 0:00:14]} 74. Kg3 {[%clk 0:00:04]}  Qe1+ {[%clk 0:00:14]} 75. Kg2 {[%clk 0:00:04]}  Qe2+ {[%clk 0:00:14]} 1/2-1/2


[Site "https://www.chess.com"]

[Event "Titled Tuesday Blitz November 08 Late 2022"]
[White "Sargsyan, Anna M."]
[Black "Viana Da Costa, Fernando"]
[WhiteFideId "13308130"]
[BlackFideId "2111900"]
[WhiteElo "2284"]
[BlackElo "2259"]
[Result "1-0"]
[Round "11"]
[TimeControl "180+1"]
[Date "2022.11.09"]
[WhiteClock "0:00:03"]
[BlackClock "0:00:06"]

1. d4 {[%clk 0:03:00]}  Nf6 {[%clk 0:00:37]} 2. c4 {[%clk 0:02:58]}  e6 {[%clk 0:00:37]} 3. Nf3 {[%clk 0:02:57]}  d5 {[%clk 0:00:37]} 4. Nc3 {[%clk 0:02:58]}  Be7 {[%clk 0:00:37]} 5. Bg5 {[%clk 0:02:54]}  O-O {[%clk 0:00:37]} 6. e3 {[%clk 0:02:55]}  h6 {[%clk 0:00:37]} 7. Bxf6 {[%clk 0:02:55]}  Bxf6 {[%clk 0:00:38]} 8. Qc2 {[%clk 0:02:55]}  c6 {[%clk 0:00:35]} 9. cxd5 {[%clk 0:02:54]}  exd5 {[%clk 0:00:34]} 10. Bd3 {[%clk 0:02:55]}  Re8 {[%clk 0:00:34]} 11. O-O-O {[%clk 0:02:53]}  a5 {[%clk 0:00:33]} 12. Rdg1 {[%clk 0:02:54]}  Na6 {[%clk 0:00:33]} 13. a3 {[%clk 0:02:53]}  b5 {[%clk 0:00:33]} 14. g4 {[%clk 0:02:53]}  b4 {[%clk 0:00:33]} 15. Ne2 {[%clk 0:02:52]}  bxa3 {[%clk 0:00:32]} 16. bxa3 {[%clk 0:02:53]}  Qd6 {[%clk 0:00:31]} 17. g5 {[%clk 0:02:35]}  Qxa3+ {[%clk 0:00:27]} 18. Kd2 {[%clk 0:02:36]}  hxg5 {[%clk 0:00:26]} 19. Nxg5 {[%clk 0:02:36]}  Nb4 {[%clk 0:00:24]} 20. Bh7+ {[%clk 0:02:31]}  Kf8 {[%clk 0:00:23]} 21. Qc3 {[%clk 0:02:09]}  Qa2+ {[%clk 0:00:21]} 22. Kd1 {[%clk 0:01:54]}  Ba6 {[%clk 0:00:16]} 23. Nc1 {[%clk 0:01:50]}  Qa4+ {[%clk 0:00:16]} 24. Kd2 {[%clk 0:01:40]}  Qb5 {[%clk 0:00:15]} 25. Bf5 {[%clk 0:01:16]}  Kg8 {[%clk 0:00:14]} 26. Nh7 {[%clk 0:00:42]}  Be7 {[%clk 0:00:13]} 27. Rg4 {[%clk 0:00:38]}  Qc4 {[%clk 0:00:11]} 28. Rhg1 {[%clk 0:00:35]}  Qxc3+ {[%clk 0:00:11]} 29. Kxc3 {[%clk 0:00:36]}  g6 {[%clk 0:00:11]} 30. Bxg6 {[%clk 0:00:36]}  fxg6 {[%clk 0:00:11]} 31. Rxg6+ {[%clk 0:00:37]}  Kxh7 {[%clk 0:00:12]} 32. Rg7+ {[%clk 0:00:21]}  Kh8 {[%clk 0:00:11]} 33. R7g3 {[%clk 0:00:21]}  Bc8 {[%clk 0:00:10]} 34. Ne2 {[%clk 0:00:19]}  Bd6 {[%clk 0:00:06]} 35. Rg5 {[%clk 0:00:19]}  Na2+ {[%clk 0:00:01]} 36. Kb2 {[%clk 0:00:18]}  Ra7 {[%clk 0:00:02]} 37. Kxa2 {[%clk 0:00:14]}  Rh7 {[%clk 0:00:02]} 38. Ng3 {[%clk 0:00:10]}  Be6 {[%clk 0:00:02]} 39. Nf5 {[%clk 0:00:08]}  Bxf5 {[%clk 0:00:02]} 40. Rxf5 {[%clk 0:00:09]}  Rf8 {[%clk 0:00:02]} 41. Rxf8+ {[%clk 0:00:08]}  Bxf8 {[%clk 0:00:03]} 42. Kb3 {[%clk 0:00:08]}  Bd6 {[%clk 0:00:03]} 43. Ra1 {[%clk 0:00:08]}  Rb7+ {[%clk 0:00:03]} 44. Kc2 {[%clk 0:00:08]}  Bb4 {[%clk 0:00:04]} 45. Kd3 {[%clk 0:00:08]}  Rf7 {[%clk 0:00:04]} 46. f4 {[%clk 0:00:08]}  Kg7 {[%clk 0:00:05]} 47. Ke2 {[%clk 0:00:07]}  Kf6 {[%clk 0:00:05]} 48. Kf3 {[%clk 0:00:08]}  Rh7 {[%clk 0:00:05]} 49. Rh1 {[%clk 0:00:07]}  Ra7 {[%clk 0:00:05]} 50. e4 {[%clk 0:00:08]}  dxe4+ {[%clk 0:00:05]} 51. Kxe4 {[%clk 0:00:09]}  a4 {[%clk 0:00:06]} 52. Ra1 {[%clk 0:00:09]}  a3 {[%clk 0:00:06]} 53. Kd3 {[%clk 0:00:10]}  Ke6 {[%clk 0:00:06]} 54. Kc4 {[%clk 0:00:11]}  Bd6 {[%clk 0:00:05]} 55. h4 {[%clk 0:00:11]}  Kd7 {[%clk 0:00:03]} 56. f5 {[%clk 0:00:11]}  Ra5 {[%clk 0:00:03]} 57. f6 {[%clk 0:00:11]}  Rf5 {[%clk 0:00:04]} 58. h5 {[%clk 0:00:11]}  Rxf6 {[%clk 0:00:03]} 59. Rh1 {[%clk 0:00:10]}  Rh6 {[%clk 0:00:03]} 60. Kb3 {[%clk 0:00:11]}  Ke6 {[%clk 0:00:03]} 61. Re1+ {[%clk 0:00:10]}  Kd5 {[%clk 0:00:03]} 62. Rh1 {[%clk 0:00:09]}  Rh8 {[%clk 0:00:03]} 63. Rh4 {[%clk 0:00:10]}  Rb8+ {[%clk 0:00:03]} 64. Ka2 {[%clk 0:00:10]}  Rb2+ {[%clk 0:00:03]} 65. Ka1 {[%clk 0:00:11]}  Rf2 {[%clk 0:00:03]} 66. h6 {[%clk 0:00:10]}  Rf8 {[%clk 0:00:03]} 67. h7 {[%clk 0:00:11]}  Rh8 {[%clk 0:00:04]} 68. Ka2 {[%clk 0:00:10]}  Ke6 {[%clk 0:00:04]} 69. Kb3 {[%clk 0:00:11]}  Kf7 {[%clk 0:00:04]} 70. Rh6 {[%clk 0:00:11]}  Bf8 {[%clk 0:00:03]} 71. Rxc6 {[%clk 0:00:11]}  Rxh7 {[%clk 0:00:04]} 72. Ra6 {[%clk 0:00:10]}  Rh3+ {[%clk 0:00:04]} 73. Kc4 {[%clk 0:00:10]}  Rh2 {[%clk 0:00:03]} 74. Kd5 {[%clk 0:00:10]}  a2 {[%clk 0:00:03]} 75. Ra7+ {[%clk 0:00:10]}  Be7 {[%clk 0:00:03]} 76. Kc6 {[%clk 0:00:10]}  Kf6 {[%clk 0:00:02]} 77. Kd5 {[%clk 0:00:10]}  Bb4 {[%clk 0:00:02]} 78. Kc4 {[%clk 0:00:10]}  Rb2 {[%clk 0:00:02]} 79. d5 {[%clk 0:00:08]}  Bd6 {[%clk 0:00:02]} 80. Ra6 {[%clk 0:00:09]}  Ke5 {[%clk 0:00:03]} 81. Ra8 {[%clk 0:00:07]}  Rc2+ {[%clk 0:00:03]} 82. Kd3 {[%clk 0:00:06]}  Rd2+ {[%clk 0:00:04]} 83. Kxd2 {[%clk 0:00:06]}  Kxd5 {[%clk 0:00:05]} 84. Rxa2 {[%clk 0:00:06]}  Bc5 {[%clk 0:00:06]} 85. Kd3 {[%clk 0:00:06]}  Bd6 {[%clk 0:00:06]} 86. Rg2 {[%clk 0:00:06]}  Ke6 {[%clk 0:00:07]} 87. Ke4 {[%clk 0:00:06]}  Kf7 {[%clk 0:00:07]} 88. Kf5 {[%clk 0:00:06]}  Ke7 {[%clk 0:00:07]} 89. Ra2 {[%clk 0:00:04]}  Kd7 {[%clk 0:00:07]} 90. Ra7+ {[%clk 0:00:04]}  Kc6 {[%clk 0:00:08]} 91. Ke6 {[%clk 0:00:05]}  Bb8 {[%clk 0:00:07]} 92. Ra2 {[%clk 0:00:04]}  Kb7 {[%clk 0:00:07]} 93. Kd7 {[%clk 0:00:04]}  Bg3 {[%clk 0:00:06]} 94. Ra3 {[%clk 0:00:04]}  Bf4 {[%clk 0:00:06]} 95. Rb3+ {[%clk 0:00:05]}  Ka8 {[%clk 0:00:06]} 96. Kc8 {[%clk 0:00:05]}  Bd6 {[%clk 0:00:06]} 97. Rb6 {[%clk 0:00:06]}  Bc5 {[%clk 0:00:06]} 98. Rb5 {[%clk 0:00:04]}  Ba7 {[%clk 0:00:06]} 99. Rb1 {[%clk 0:00:03]}  Be3 {[%clk 0:00:06]} 100. Kc7 {[%clk 0:00:04]}  Ba7 {[%clk 0:00:06]} 101. Kc6 {[%clk 0:00:04]}  Bf2 {[%clk 0:00:06]} 102. Kb5 {[%clk 0:00:05]}  Ba7 {[%clk 0:00:06]} 103. Rb2 {[%clk 0:00:05]}  Kb7 {[%clk 0:00:06]} 104. Re2 {[%clk 0:00:05]}  Kb8 {[%clk 0:00:05]} 105. Re8+ {[%clk 0:00:04]}  Kc7 {[%clk 0:00:06]} 106. Re7+ {[%clk 0:00:05]}  Kb8 {[%clk 0:00:06]} 107. Kc6 {[%clk 0:00:04]}  Bg1 {[%clk 0:00:06]} 108. Rg7 {[%clk 0:00:04]}  Ka8 {[%clk 0:00:06]} 109. Rxg1 {[%clk 0:00:03]} 1-0


[Site "https://www.chess.com"]

[Event "Titled Tuesday Blitz November 08 Late 2022"]
[White "Shapiro, Daniel"]
[Black "Fiol, Fabrice"]
[WhiteFideId "2001780"]
[BlackFideId "611670"]
[WhiteElo "2266"]
[BlackElo "2437"]
[Result "0-1"]
[Round "11"]
[TimeControl "180+1"]
[Date "2022.11.09"]
[WhiteClock "0:00:14"]
[BlackClock "0:00:59"]

1. d4 {[%clk 0:03:00]}  Nf6 {[%clk 0:02:59]} 2. c4 {[%clk 0:03:00]}  e6 {[%clk 0:03:00]} 3. g3 {[%clk 0:03:00]}  Bb4+ {[%clk 0:03:00]} 4. Nd2 {[%clk 0:02:56]}  c6 {[%clk 0:02:54]} 5. Bg2 {[%clk 0:02:53]}  d5 {[%clk 0:02:54]} 6. Qc2 {[%clk 0:02:49]}  O-O {[%clk 0:02:54]} 7. a3 {[%clk 0:02:43]}  Be7 {[%clk 0:02:53]} 8. Ngf3 {[%clk 0:02:42]}  b6 {[%clk 0:02:54]} 9. O-O {[%clk 0:02:41]}  Ba6 {[%clk 0:02:54]} 10. b4 {[%clk 0:02:36]}  Nbd7 {[%clk 0:02:50]} 11. Bb2 {[%clk 0:02:28]}  Rc8 {[%clk 0:02:36]} 12. Rac1 {[%clk 0:02:13]}  c5 {[%clk 0:02:34]} 13. dxc5 {[%clk 0:02:10]}  bxc5 {[%clk 0:02:33]} 14. b5 {[%clk 0:02:10]}  Bb7 {[%clk 0:02:33]} 15. e3 {[%clk 0:02:07]}  Re8 {[%clk 0:02:31]} 16. Rfd1 {[%clk 0:02:06]}  Qb6 {[%clk 0:02:29]} 17. a4 {[%clk 0:02:05]}  a5 {[%clk 0:02:28]} 18. Ne5 {[%clk 0:02:03]}  Nxe5 {[%clk 0:02:25]} 19. Bxe5 {[%clk 0:02:02]}  Nd7 {[%clk 0:02:26]} 20. Bb2 {[%clk 0:01:55]}  Bf6 {[%clk 0:02:20]} 21. Nb3 {[%clk 0:01:35]}  Bxb2 {[%clk 0:01:57]} 22. Qxb2 {[%clk 0:01:36]}  Nf6 {[%clk 0:01:55]} 23. Qc3 {[%clk 0:01:29]}  d4 {[%clk 0:01:53]} 24. exd4 {[%clk 0:01:24]}  Bxg2 {[%clk 0:01:54]} 25. Kxg2 {[%clk 0:01:20]}  cxd4 {[%clk 0:01:44]} 26. Qxd4 {[%clk 0:01:17]}  Qb7+ {[%clk 0:01:39]} 27. f3 {[%clk 0:01:16]}  h6 {[%clk 0:01:31]} 28. c5 {[%clk 0:01:16]}  e5 {[%clk 0:01:27]} 29. c6 {[%clk 0:00:40]}  Qe7 {[%clk 0:01:23]} 30. Qd6 {[%clk 0:00:37]}  Qa7 {[%clk 0:01:22]} 31. Qc5 {[%clk 0:00:33]}  Qa8 {[%clk 0:01:16]} 32. b6 {[%clk 0:00:30]}  Qa6 {[%clk 0:01:12]} 33. Qb5 {[%clk 0:00:20]}  Qxb5 {[%clk 0:01:09]} 34. axb5 {[%clk 0:00:20]}  e4 {[%clk 0:01:10]} 35. b7 {[%clk 0:00:19]}  exf3+ {[%clk 0:01:10]} 36. Kxf3 {[%clk 0:00:18]}  Rb8 {[%clk 0:01:06]} 37. Nxa5 {[%clk 0:00:18]}  Ne4 {[%clk 0:01:05]} 38. c7 {[%clk 0:00:17]}  Ng5+ {[%clk 0:01:06]} 39. Kg4 {[%clk 0:00:16]}  Re4+ {[%clk 0:01:04]} 40. Kf5 {[%clk 0:00:14]}  g6+ {[%clk 0:00:59]} 0-1


[Site "https://www.chess.com"]

[Event "Titled Tuesday Blitz November 08 Late 2022"]
[White "Simonovic, Miroslav"]
[Black "Yanayt, Eugene"]
[WhiteFideId "919152"]
[BlackFideId "2020165"]
[WhiteElo "2043"]
[BlackElo "2046"]
[Result "1/2-1/2"]
[Round "11"]
[TimeControl "180+1"]
[Date "2022.11.09"]
[WhiteClock "0:00:07"]
[BlackClock "0:00:02"]

1. d4 {[%clk 0:03:00]}  Nf6 {[%clk 0:02:58]} 2. Bg5 {[%clk 0:03:01]}  Ne4 {[%clk 0:02:55]} 3. h4 {[%clk 0:03:01]}  Nxg5 {[%clk 0:02:54]} 4. hxg5 {[%clk 0:03:02]}  h6 {[%clk 0:02:51]} 5. g6 {[%clk 0:03:00]}  f6 {[%clk 0:02:44]} 6. e4 {[%clk 0:02:49]}  e6 {[%clk 0:02:41]} 7. f4 {[%clk 0:02:43]}  Be7 {[%clk 0:02:39]} 8. f5 {[%clk 0:02:29]}  d5 {[%clk 0:02:34]} 9. fxe6 {[%clk 0:02:09]}  Bxe6 {[%clk 0:02:31]} 10. exd5 {[%clk 0:02:08]}  Bxd5 {[%clk 0:02:28]} 11. c4 {[%clk 0:02:08]}  Bb4+ {[%clk 0:02:23]} 12. Nc3 {[%clk 0:02:04]}  Be4 {[%clk 0:02:21]} 13. Qa4+ {[%clk 0:01:54]}  Nc6 {[%clk 0:02:20]} 14. d5 {[%clk 0:01:54]}  Qe7 {[%clk 0:01:58]} 15. O-O-O {[%clk 0:01:37]}  O-O {[%clk 0:01:49]} 16. dxc6 {[%clk 0:01:28]}  bxc6 {[%clk 0:01:47]} 17. Nf3 {[%clk 0:00:51]}  Bxg6 {[%clk 0:01:41]} 18. Bd3 {[%clk 0:00:45]}  Bf7 {[%clk 0:01:35]} 19. Qc2 {[%clk 0:00:39]}  Rab8 {[%clk 0:01:29]} 20. a3 {[%clk 0:00:35]}  Bxa3 {[%clk 0:01:26]} 21. bxa3 {[%clk 0:00:36]}  Qxa3+ {[%clk 0:01:25]} 22. Kd2 {[%clk 0:00:35]}  Rb2 {[%clk 0:01:25]} 23. Ra1 {[%clk 0:00:25]}  Rxc2+ {[%clk 0:01:22]} 24. Kxc2 {[%clk 0:00:25]}  Qc5 {[%clk 0:01:20]} 25. Rhe1 {[%clk 0:00:20]}  Bxc4 {[%clk 0:01:12]} 26. Bxc4+ {[%clk 0:00:20]}  Qxc4 {[%clk 0:01:12]} 27. Ra4 {[%clk 0:00:20]}  Qc5 {[%clk 0:01:11]} 28. Nd2 {[%clk 0:00:15]}  f5 {[%clk 0:01:06]} 29. Rea1 {[%clk 0:00:12]}  Rd8 {[%clk 0:01:00]} 30. Rxa7 {[%clk 0:00:10]}  Qf2 {[%clk 0:00:56]} 31. Nb1 {[%clk 0:00:10]}  Rd5 {[%clk 0:00:54]} 32. Rxc7 {[%clk 0:00:09]}  Rc5+ {[%clk 0:00:52]} 33. Nc3 {[%clk 0:00:09]}  Qd4 {[%clk 0:00:36]} 34. Ra8+ {[%clk 0:00:06]}  Kh7 {[%clk 0:00:35]} 35. Nb1 {[%clk 0:00:07]}  Qe4+ {[%clk 0:00:30]} 36. Kb2 {[%clk 0:00:06]}  Qxg2+ {[%clk 0:00:29]} 37. Kb3 {[%clk 0:00:06]}  Qg4 {[%clk 0:00:22]} 38. Raa7 {[%clk 0:00:06]}  Qc4+ {[%clk 0:00:22]} 39. Kc2 {[%clk 0:00:06]}  Qe2+ {[%clk 0:00:20]} 40. Kb3 {[%clk 0:00:06]}  Qc4+ {[%clk 0:00:19]} 41. Kb2 {[%clk 0:00:06]}  Kg6 {[%clk 0:00:20]} 42. Rxg7+ {[%clk 0:00:05]}  Kh5 {[%clk 0:00:20]} 43. Rgf7 {[%clk 0:00:04]}  Qb4+ {[%clk 0:00:19]} 44. Kc2 {[%clk 0:00:04]}  Re5 {[%clk 0:00:18]} 45. Rad7 {[%clk 0:00:03]}  Qb6 {[%clk 0:00:18]} 46. Rd2 {[%clk 0:00:02]}  Kg6 {[%clk 0:00:16]} 47. Rfd7 {[%clk 0:00:02]}  f4 {[%clk 0:00:14]} 48. R7d6+ {[%clk 0:00:03]}  Kf5 {[%clk 0:00:14]} 49. R2d3 {[%clk 0:00:03]}  Kg4 {[%clk 0:00:12]} 50. Nd2 {[%clk 0:00:04]}  Qa6 {[%clk 0:00:10]} 51. Nb3 {[%clk 0:00:03]}  Qb7 {[%clk 0:00:08]} 52. Rg6+ {[%clk 0:00:04]}  Kf5 {[%clk 0:00:08]} 53. Rxh6 {[%clk 0:00:04]}  Re1 {[%clk 0:00:07]} 54. Rh5+ {[%clk 0:00:04]}  Kg4 {[%clk 0:00:07]} 55. Rc5 {[%clk 0:00:04]}  f3 {[%clk 0:00:08]} 56. Rc4+ {[%clk 0:00:04]}  Kg3 {[%clk 0:00:07]} 57. Nd2 {[%clk 0:00:04]}  Kg2 {[%clk 0:00:06]} 58. Rxf3 {[%clk 0:00:04]}  Qh7+ {[%clk 0:00:05]} 59. Rd3 {[%clk 0:00:04]}  Re3 {[%clk 0:00:04]} 60. Rd4 {[%clk 0:00:05]}  c5 {[%clk 0:00:04]} 61. Rd5 {[%clk 0:00:05]}  c4 {[%clk 0:00:04]} 62. Nxc4 {[%clk 0:00:05]}  Re2+ {[%clk 0:00:02]} 63. Nd2 {[%clk 0:00:06]}  Rf2 {[%clk 0:00:02]} 64. Rd4 {[%clk 0:00:06]}  Kh2 {[%clk 0:00:02]} 65. Ne4 {[%clk 0:00:06]}  Re2 {[%clk 0:00:01]} 66. Rc4 {[%clk 0:00:06]}  Rxe4 {[%clk 0:00:01]} 67. Rxe4 {[%clk 0:00:05]}  Qc7+ {[%clk 0:00:02]} 68. Rc4 {[%clk 0:00:06]}  Qb6 {[%clk 0:00:02]} 69. Rdc3 {[%clk 0:00:06]}  Kg2 {[%clk 0:00:03]} 70. Ne4 {[%clk 0:00:06]}  Kf1 {[%clk 0:00:02]} 71. Nc5 {[%clk 0:00:07]}  Ke2 {[%clk 0:00:02]} 72. Nb3 {[%clk 0:00:07]}  Qg6+ {[%clk 0:00:03]} 73. Kb2 {[%clk 0:00:07]}  Qf6 {[%clk 0:00:03]} 74. Ka3 {[%clk 0:00:07]}  Kf2 {[%clk 0:00:03]} 75. Rc2+ {[%clk 0:00:07]}  Ke3 {[%clk 0:00:03]} 76. Nc5 {[%clk 0:00:07]}  Qb6 {[%clk 0:00:02]} 77. Ka2 {[%clk 0:00:07]}  Qa7+ {[%clk 0:00:01]} 78. Kb2 {[%clk 0:00:06]}  Qb6+ {[%clk 0:00:01]} 79. Nb3 {[%clk 0:00:07]}  Qb5 {[%clk 0:00:01]} 80. R4c3+ {[%clk 0:00:07]}  Ke4 {[%clk 0:00:01]} 81. Rc4+ {[%clk 0:00:07]}  Ke3 {[%clk 0:00:02]} 82. R2c3+ {[%clk 0:00:08]}  Ke2 {[%clk 0:00:02]} 83. Re4+ {[%clk 0:00:07]}  Kf2 {[%clk 0:00:02]} 84. Rec4 {[%clk 0:00:07]}  Ke2 {[%clk 0:00:02]} 85. Rc2+ {[%clk 0:00:07]}  Ke3 {[%clk 0:00:02]} 1/2-1/2


[Site "https://www.chess.com"]

[Event "Titled Tuesday Blitz November 08 Late 2022"]
[White "Stoyanov, Tsvetan"]
[Black "Tokhirjonova, Gulrukhbegim"]
[WhiteFideId "2917173"]
[BlackFideId "14203626"]
[WhiteElo "2349"]
[BlackElo "2236"]
[Result "1-0"]
[Round "11"]
[TimeControl "180+1"]
[Date "2022.11.09"]
[WhiteClock "0:00:10"]
[BlackClock "0:00:17"]

1. e4 {[%clk 0:03:00]}  e5 {[%clk 0:02:59]} 2. Nf3 {[%clk 0:03:01]}  Nc6 {[%clk 0:02:59]} 3. d4 {[%clk 0:03:01]}  exd4 {[%clk 0:02:59]} 4. Nxd4 {[%clk 0:03:02]}  Nf6 {[%clk 0:02:58]} 5. Nxc6 {[%clk 0:03:02]}  bxc6 {[%clk 0:02:58]} 6. e5 {[%clk 0:03:03]}  Qe7 {[%clk 0:02:58]} 7. Qe2 {[%clk 0:03:03]}  Nd5 {[%clk 0:02:59]} 8. h4 {[%clk 0:03:04]}  a5 {[%clk 0:02:59]} 9. c4 {[%clk 0:03:01]}  Ba6 {[%clk 0:02:58]} 10. g3 {[%clk 0:03:01]}  g6 {[%clk 0:02:58]} 11. h5 {[%clk 0:02:25]}  Bg7 {[%clk 0:02:55]} 12. f4 {[%clk 0:02:10]}  f6 {[%clk 0:02:46]} 13. hxg6 {[%clk 0:01:56]}  hxg6 {[%clk 0:02:47]} 14. Rxh8+ {[%clk 0:01:55]}  Bxh8 {[%clk 0:02:48]} 15. Qc2 {[%clk 0:01:54]}  fxe5 {[%clk 0:02:19]} 16. Qxg6+ {[%clk 0:01:47]}  Kf8 {[%clk 0:02:19]} 17. f5 {[%clk 0:00:59]}  Nf4 {[%clk 0:01:51]} 18. gxf4 {[%clk 0:00:52]}  exf4+ {[%clk 0:01:52]} 19. Kd1 {[%clk 0:00:51]}  Re8 {[%clk 0:01:50]} 20. Bd3 {[%clk 0:00:42]}  Qe1+ {[%clk 0:01:04]} 21. Kc2 {[%clk 0:00:42]}  d5 {[%clk 0:00:50]} 22. Qxc6 {[%clk 0:00:20]}  dxc4 {[%clk 0:00:38]} 23. Qxa6 {[%clk 0:00:20]}  cxd3+ {[%clk 0:00:38]} 24. Qxd3 {[%clk 0:00:21]}  Qf2+ {[%clk 0:00:28]} 25. Bd2 {[%clk 0:00:18]}  f3 {[%clk 0:00:27]} 26. Nc3 {[%clk 0:00:17]}  Bf6 {[%clk 0:00:26]} 27. Rf1 {[%clk 0:00:17]}  Qg2 {[%clk 0:00:24]} 28. Qxf3 {[%clk 0:00:16]}  Qg7 {[%clk 0:00:20]} 29. Rh1 {[%clk 0:00:11]}  Qd7 {[%clk 0:00:18]} 30. Bh6+ {[%clk 0:00:11]}  Kf7 {[%clk 0:00:17]} 31. Qh5+ {[%clk 0:00:11]}  Kg8 {[%clk 0:00:18]} 32. Qg6+ {[%clk 0:00:11]}  Bg7 {[%clk 0:00:17]} 33. Bxg7 {[%clk 0:00:10]}  Qxg7 {[%clk 0:00:17]} 34. Qxe8+ {[%clk 0:00:10]} 1-0


[Site "https://www.chess.com"]